fUSD/lending_fUSD_20240519
["ID","MTS","AMOUNT","RATE_DAILY","PERIOD"]
[327464002,1716085846338,-1051.87,0.00027397,2]
[327464003,1716085846348,-500.0,0.00027397,2]
[327464004,1716085846359,-513.05155357,0.00027397,2]
[327464005,1716085846369,-500.0,0.00027397,2]
[327464006,1716085846378,-500.0,0.00027397,2]
[327464007,1716085846387,-500.0,0.00027397,2]
[327464008,1716085846397,-500.0,0.00027397,2]
[327464009,1716085846406,-500.0,0.00027397,2]
[327464010,1716085846416,-500.0,0.00027397,2]
[327464011,1716085846425,-500.0,0.00027397,2]
[327464012,1716085846435,-500.0,0.00027397,2]
[327464013,1716085846445,-524.02649124,0.00027397,2]
[327464014,1716085846454,-500.0,0.00027397,2]
[327464015,1716085846463,-642.85644146,0.00027397,2]
[327464016,1716085846472,-281.43354588,0.00027397,2]
[327464017,1716085846482,-500.0,0.00027397,2]
[327464018,1716085846497,-500.0,0.00027397,2]
[327464019,1716085846506,-500.0,0.00027397,2]
[327464020,1716085846515,-500.0,0.00027397,2]
[327464021,1716085846524,-500.0,0.00027397,2]
[327464022,1716085846535,-500.0,0.00027397,2]
[327464023,1716085846544,-701.64,0.00027397,2]
[327464024,1716085846553,-500.0,0.00027397,2]
[327464025,1716085846563,-500.0,0.00027397,2]
[327464026,1716085846573,-500.0,0.00027397,2]
[327464027,1716085846582,-571.25496209,0.00027397,2]
[327464028,1716085846591,-500.0,0.00027397,2]
[327464029,1716085846600,-593.06,0.00027397,2]
[327464030,1716085846609,-500.0,0.00027397,2]
[327464031,1716085846618,-500.0,0.00027397,2]
[327464032,1716085846627,-500.0,0.00027397,2]
[327464033,1716085846637,-515.5825638,0.00027397,2]
[327464034,1716085846646,-507.04,0.00027397,2]
[327464035,1716085846655,-500.0,0.00027397,2]
[327464036,1716085846665,-1883.54,0.00027397,2]
[327464037,1716085846674,-500.0,0.00027397,2]
[327464038,1716085846683,-500.0,0.00027397,2]
[327464039,1716085846692,-666.92,0.00027397,2]
[327464040,1716085846702,-500.0,0.00027397,2]
[327464041,1716085846713,-656.73,0.00027397,2]
[327464042,1716085846722,-1592.97,0.00027397,2]
[327464043,1716085846732,-1390.92,0.00027397,2]
[327464044,1716085846742,-500.0,0.00027397,2]
[327464045,1716085846751,-500.0,0.00027397,2]
[327464046,1716085846760,-500.0,0.00027397,2]
[327464047,1716085846769,-500.0,0.00027397,2]
[327464048,1716085846778,-500.0,0.00027397,2]
[327464049,1716085846787,-500.0,0.00027397,2]
[327464050,1716085846796,-3702.21,0.00027397,2]
[327464051,1716085846805,-612.6,0.00027397,2]
[327464052,1716085846815,-3199.39,0.00027397,2]
[327464053,1716085846824,-516.58316329,0.00027397,2]
[327464054,1716085846833,-500.0,0.00027397,2]
[327464055,1716085846843,-500.0,0.00027397,2]
[327464056,1716085846852,-500.0,0.00027397,2]
[327464057,1716085846861,-500.0,0.00027397,2]
[327464058,1716085846870,-1388.18,0.00027397,2]
[327464059,1716085846879,-1511.36,0.00027397,2]
[327464060,1716085846888,-500.0,0.00027397,2]
[327464061,1716085846897,-2129.75,0.00027397,2]
[327464062,1716085846907,-500.0,0.00027397,2]
[327464063,1716085846916,-500.0,0.00027397,2]
[327464064,1716085846925,-1073.96,0.00027397,2]
[327464065,1716085846934,-500.0,0.00027397,2]
[327464066,1716085846943,-690.65,0.00027397,2]
[327464067,1716085846954,-500.0,0.00027397,2]
[327464068,1716085846966,-2270.06,0.00027397,2]
[327464069,1716085846976,-500.0,0.00027397,2]
[327464070,1716085846986,-6532.15,0.00027397,2]
[327464071,1716085846995,-500.0,0.00027397,2]
[327464072,1716085847004,-500.0,0.00027397,2]
[327464073,1716085847014,-500.0,0.00027397,2]
[327464074,1716085847023,-519.45462904,0.00027397,2]
[327464075,1716085847032,-894.77,0.00027397,2]
[327464076,1716085847042,-500.0,0.00027397,2]
[327464077,1716085847051,-500.0,0.00027397,2]
[327464078,1716085847060,-500.0,0.00027397,2]
[327464079,1716085847069,-501.55272152,0.00027397,2]
[327464080,1716085847078,-500.0,0.00027397,2]
[327464081,1716085847087,-500.0,0.00027397,2]
[327464082,1716085847096,-500.0,0.00027397,2]
[327464083,1716085847105,-500.0,0.00027397,2]
[327464084,1716085847114,-578.57,0.00027397,2]
[327464085,1716085847123,-500.0,0.00027397,2]
[327464086,1716085847132,-500.0,0.00027397,2]
[327464087,1716085847141,-500.0,0.00027397,2]
[327464088,1716085847151,-500.0,0.00027397,2]
[327464089,1716085847159,-1921.99,0.00027397,2]
[327464090,1716085847168,-8416.22,0.00027397,2]
[327464091,1716085847177,-500.0,0.00027397,2]
[327464092,1716085847186,-500.0,0.00027397,2]
[327464093,1716085847195,-980.05,0.00027397,2]
[327464094,1716085847204,-500.0,0.00027397,2]
[327464095,1716085847213,-500.0,0.00027397,2]
[327464096,1716085847223,-500.0,0.00027397,2]
[327464097,1716085847233,-670.91,0.00027397,2]
[327464098,1716085847242,-723.44,0.00027397,2]
[327464099,1716085847253,-1815.36,0.00027397,2]
[327464100,1716085847262,-572.44,0.00027397,2]
[327464101,1716085847271,-500.0,0.00027397,2]
[327464102,1716085847280,-500.0,0.00027397,2]
[327464103,1716085847289,-679.69,0.00027397,2]
[327464104,1716085847298,-500.0,0.00027397,2]
[327464105,1716085847307,-500.0,0.00027397,2]
[327464106,1716085847316,-500.0,0.00027397,2]
[327464107,1716085847325,-500.0,0.00027397,2]
[327464108,1716085847334,-757.0,0.00027397,2]
[327464109,1716085847343,-500.0,0.00027397,2]
[327464110,1716085847352,-500.0,0.00027397,2]
[327464111,1716085847361,-986.68,0.00027397,2]
[327464112,1716085847370,-500.0,0.00027397,2]
[327464113,1716085847380,-1095.82,0.00027397,2]
[327464114,1716085847390,-500.0,0.00027397,2]
[327464115,1716085847399,-1045.42,0.00027397,2]
[327464116,1716085847409,-500.0,0.00027397,2]
[327464117,1716085847418,-634.84,0.00027397,2]
[327464118,1716085847428,-564.16,0.00027397,2]
[327464119,1716085847438,-500.0,0.00027397,2]
[327464120,1716085847447,-1005.81,0.00027397,2]
[327464121,1716085847457,-500.0,0.00027397,2]
[327464122,1716085847467,-1148.74,0.00027397,2]
[327464123,1716085847476,-863.33,0.00027397,2]
[327464124,1716085847488,-320.9951381,0.00027397,2]
[327464125,1716085847500,-1540.44,0.00027397,2]
[327464126,1716085847510,-1101.78,0.00027397,2]
[327464127,1716085847520,-500.0,0.00027397,2]
[327464128,1716085847531,-500.0,0.00027397,2]
[327464129,1716085847540,-518.34,0.00027397,2]
[327464130,1716085847551,-500.0,0.00027397,2]
[327464131,1716085847560,-500.0,0.00027397,2]
[327464132,1716085847573,-1055.9,0.00027397,2]
[327464133,1716085847582,-500.0,0.00027397,2]
[327464134,1716085847592,-611.2,0.00027397,2]
[327464135,1716085847602,-500.0,0.00027397,2]
[327464136,1716085847611,-500.0,0.00027397,2]
[327464137,1716085847621,-520.28225693,0.00027397,2]
[327464138,1716085847631,-519.9,0.00027397,2]
[327464139,1716085847640,-845.3,0.00027397,2]
[327464140,1716085847650,-500.0,0.00027397,2]
[327464141,1716085847660,-500.0,0.00027397,2]
[327464142,1716085847670,-500.0,0.00027397,2]
[327464143,1716085847679,-500.0,0.00027397,2]
[327464144,1716085847689,-500.0,0.00027397,2]
[327464145,1716085847699,-418.33278941,0.00027397,2]
[327464146,1716085847709,-1331.68,0.00027397,2]
[327464147,1716085847719,-515.85,0.00027397,2]
[327464148,1716085847729,-500.0,0.00027397,2]
[327464149,1716085847740,-764.74,0.00027397,2]
[327464150,1716085847750,-766.32,0.00027397,2]
[327464151,1716085847760,-500.0,0.00027397,2]
[327464152,1716085847771,-500.0,0.00027397,2]
[327464153,1716085847781,-500.0,0.00027397,2]
[327464154,1716085847791,-500.0,0.00027397,2]
[327464155,1716085847802,-500.0,0.00027397,2]
[327464156,1716085847811,-600.54,0.00027397,2]
[327464157,1716085847821,-1277.87,0.00027397,2]
[327464158,1716085847832,-500.0,0.00027397,2]
[327464159,1716085847841,-500.0,0.00027397,2]
[327464160,1716085847852,-520.47668639,0.00027397,2]
[327464161,1716085847862,-888.42,0.00027397,2]
[327464162,1716085847872,-1399.26,0.00027397,2]
[327464163,1716085847882,-516.14880215,0.00027397,2]
[327464164,1716085847893,-500.0,0.00027397,2]
[327464165,1716085847903,-500.0,0.00027397,2]
[327464166,1716085847912,-500.0,0.00027397,2]
[327464167,1716085847923,-779.91,0.00027397,2]
[327464168,1716085847933,-1265.7,0.00027397,2]
[327464169,1716085847943,-500.0,0.00027397,2]
[327464170,1716085847953,-642.41,0.00027397,2]
[327464171,1716085847964,-791.07,0.00027397,2]
[327464172,1716085847975,-2675.79,0.00027397,2]
[327464173,1716085847985,-1862.49,0.00027397,2]
[327464174,1716085847996,-837.67,0.00027397,2]
[327464175,1716085848007,-1022.64,0.00027397,2]
[327464176,1716085848017,-594.36,0.00027397,2]
[327464177,1716085848028,-977.8,0.00027397,2]
[327464178,1716085848039,-500.0,0.00027397,2]
[327464179,1716085848049,-1659.65,0.00027397,2]
[327464180,1716085848059,-500.0,0.00027397,2]
[327464181,1716085848069,-500.0,0.00027397,2]
[327464182,1716085848080,-500.0,0.00027397,2]
[327464183,1716085848091,-500.0,0.00027397,2]
[327464184,1716085848101,-769.11,0.00027397,2]
[327464185,1716085848112,-1849.64,0.00027397,2]
[327464186,1716085848123,-500.0,0.00027397,2]
[327464187,1716085848133,-3921.05,0.00027397,2]
[327464188,1716085848143,-3411.11,0.00027397,2]
[327464189,1716085848154,-656.14,0.00027397,2]
[327464190,1716085848165,-500.0,0.00027397,2]
[327464191,1716085848176,-5296.98,0.00027397,2]
[327464192,1716085848186,-500.0,0.00027397,2]
[327464193,1716085848197,-500.0,0.00027397,2]
[327464194,1716085848207,-810.55,0.00027397,2]
[327464195,1716085848218,-500.0,0.00027397,2]
[327464196,1716085848228,-8770.41,0.00027397,2]
[327464197,1716085848241,-500.0,0.00027397,2]
[327464198,1716085848252,-16460.36,0.00027397,2]
[327464199,1716085848262,-860.7,0.00027397,2]
[327464200,1716085848273,-500.0,0.00027397,2]
[327464201,1716085848283,-1794.16,0.00027397,2]
[327464202,1716085848293,-663.76,0.00027397,2]
[327464203,1716085848303,-500.0,0.00027397,2]
[327464204,1716085848314,-500.0,0.00027397,2]
[327464205,1716085848324,-500.0,0.00027397,2]
[327464206,1716085848334,-500.0,0.00027397,2]
[327464207,1716085848344,-500.0,0.00027397,2]
[327464208,1716085848355,-500.0,0.00027397,2]
[327464209,1716085848365,-500.0,0.00027397,2]
[327464210,1716085848375,-690.48,0.00027397,2]
[327464211,1716085848385,-561.96450884,0.00027397,2]
[327464212,1716085848396,-1472.71,0.00027397,2]
[327464213,1716085848406,-500.0,0.00027397,2]
[327464214,1716085848416,-500.0,0.00027397,2]
[327464215,1716085848427,-500.0,0.00027397,2]
[327464216,1716085848437,-500.0,0.00027397,2]
[327464217,1716085848448,-3065.61,0.00027397,2]
[327464218,1716085848458,-500.0,0.00027397,2]
[327464219,1716085848468,-500.0,0.00027397,2]
[327464220,1716085848478,-500.0,0.00027397,2]
[327464221,1716085848495,-4000.0,0.00027397,2]
[327464222,1716085848507,-2501.50764522,0.000274,2]
[327464223,1716085848519,-400.0,0.000274,2]
[327464224,1716085848532,-254.5682929,0.00027428,2]
[327464225,1716085848544,-157.051911,0.00027448,14]
[327464226,1716085848557,-1000.0,0.00027571,2]
[327464227,1716085848568,-10000.0,0.00027571,2]
[327464228,1716085848579,-775.22,0.00027589,2]
[327464229,1716085848589,-9387.5618061,0.00027652,2]
[327464230,1716085848601,-8107.2716079,0.00027652,2]
[327464231,1716085848613,-500.0,0.00027671,2]
[327464232,1716085848624,-500.0,0.00027671,2]
[327464233,1716085848636,-500.0,0.00027671,2]
[327464234,1716085848648,-500.0,0.00027671,2]
[327464235,1716085848659,-500.0,0.00027671,2]
[327464236,1716085848671,-500.0,0.00027671,2]
[327464237,1716085848682,-151.0,0.00027671,7]
[327464238,1716085848694,-500.0,0.00027671,2]
[327464239,1716085848707,-500.0,0.00027671,2]
[327464240,1716085848720,-500.0,0.00027671,2]
[327464241,1716085848732,-500.0,0.00027671,2]
[327464242,1716085848746,-471.24817002,0.00027671,2]
[327464243,1716085848758,-500.0,0.00027671,2]
[327464244,1716085848769,-500.0,0.00027671,2]
[327464245,1716085848781,-696.98,0.00027671,2]
[327464246,1716085848792,-151.0,0.00027671,7]
[327464247,1716085848803,-151.0,0.00027671,7]
[327464248,1716085848815,-151.0,0.00027671,7]
[327464249,1716085848827,-162.57826,0.00027671,7]
[327464250,1716085848839,-500.0,0.00027671,2]
[327464251,1716085848849,-611.79,0.00027671,2]
[327464252,1716085848861,-164.013076,0.00027671,7]
[327464253,1716085848872,-500.0,0.00027671,2]
[327464254,1716085848883,-164.013076,0.00027671,7]
[327464255,1716085848893,-548.87,0.00027671,2]
[327464256,1716085848904,-500.0,0.00027671,2]
[327464257,1716085848916,-500.0,0.00027671,2]
[327464258,1716085848927,-500.0,0.00027671,2]
[327464259,1716085848939,-500.0,0.00027671,2]
[327464260,1716085848950,-500.0,0.00027671,2]
[327464261,1716085848962,-500.0,0.00027671,2]
[327464262,1716085848974,-151.0,0.00027671,7]
[327464263,1716085848987,-500.0,0.00027671,2]
[327464264,1716085848998,-500.0,0.00027671,2]
[327464265,1716085849010,-500.0,0.00027671,2]
[327464266,1716085849022,-500.0,0.00027671,2]
[327464267,1716085849034,-500.0,0.00027671,2]
[327464268,1716085849046,-500.0,0.00027671,2]
[327464269,1716085849058,-500.0,0.00027671,2]
[327464270,1716085849068,-500.0,0.00027671,2]
[327464271,1716085849079,-562.85,0.00027671,2]
[327464272,1716085849088,-500.0,0.00027671,2]
[327464273,1716085849098,-571.32,0.00027671,2]
[327464274,1716085849109,-503.4,0.00027671,2]
[327464275,1716085849119,-500.0,0.00027671,2]
[327464276,1716085849131,-500.0,0.00027671,2]
[327464277,1716085849143,-500.0,0.00027671,2]
[327464278,1716085849154,-151.0,0.00027671,7]
[327464279,1716085849168,-162.77,0.00027671,2]
[327464280,1716085849179,-500.0,0.00027671,2]
[327464281,1716085849188,-257.84611,0.00027671,7]
[327464282,1716085849199,-257.84611,0.00027671,7]
[327464283,1716085849210,-500.0,0.00027671,2]
[327464284,1716085849221,-525.96,0.00027671,2]
[327464285,1716085849232,-339.86235372,0.00027671,2]
[327464286,1716085849245,-500.0,0.00027671,2]
[327464287,1716085849256,-500.0,0.00027671,2]
[327464288,1716085849267,-500.0,0.00027671,2]
[327464289,1716085849277,-500.0,0.00027671,2]
[327464290,1716085849287,-500.0,0.00027671,2]
[327464291,1716085849297,-500.0,0.00027671,2]
[327464292,1716085849308,-151.0,0.00027671,7]
[327464293,1716085849318,-1032.49,0.00027671,2]
[327464294,1716085849329,-1349.16,0.00027671,2]
[327464295,1716085849339,-500.0,0.00027671,2]
[327464296,1716085849349,-500.0,0.00027671,2]
[327464297,1716085849360,-500.0,0.00027671,2]
[327464298,1716085849370,-151.0,0.00027671,7]
[327464299,1716085849380,-151.0,0.00027671,7]
[327464300,1716085849390,-606.77,0.00027671,2]
[327464301,1716085849400,-151.0,0.00027671,7]
[327464302,1716085849410,-553.62,0.00027671,2]
[327464303,1716085849421,-154.858603,0.00027671,7]
[327464304,1716085849432,-500.0,0.00027671,2]
[327464305,1716085849444,-500.0,0.00027671,2]
[327464306,1716085849455,-152.16928148,0.00027671,2]
[327464307,1716085849465,-500.0,0.00027671,2]
[327464308,1716085849475,-500.0,0.00027671,2]
[327464309,1716085849488,-500.0,0.00027671,2]
[327464310,1716085849501,-1051.87,0.00027671,2]
[327464311,1716085849511,-500.0,0.00027671,2]
[327464312,1716085849521,-500.0,0.00027671,2]
[327464313,1716085849532,-500.0,0.00027671,2]
[327464314,1716085849542,-151.0,0.00027671,7]
[327464315,1716085849553,-500.0,0.00027671,2]
[327464316,1716085849563,-501.22584758,0.00027671,2]
[327464317,1716085849576,-500.0,0.00027671,2]
[327464318,1716085849587,-500.0,0.00027671,2]
[327464319,1716085849597,-500.0,0.00027671,2]
[327464320,1716085849608,-500.0,0.00027671,2]
[327464321,1716085849619,-500.0,0.00027671,2]
[327464322,1716085849629,-500.0,0.00027671,2]
[327464323,1716085849642,-348.31903066,0.00027671,2]
[327464324,1716085849652,-500.0,0.00027671,2]
[327464325,1716085849662,-500.0,0.00027671,2]
[327464326,1716085849672,-500.0,0.00027671,2]
[327464327,1716085849683,-500.0,0.00027671,2]
[327464328,1716085849693,-701.64,0.00027671,2]
[327464329,1716085849704,-500.0,0.00027671,2]
[327464330,1716085849714,-500.0,0.00027671,2]
[327464331,1716085849724,-151.0,0.00027671,7]
[327464332,1716085849736,-500.0,0.00027671,2]
[327464333,1716085849747,-500.0,0.00027671,2]
[327464334,1716085849758,-593.06,0.00027671,2]
[327464335,1716085849768,-500.0,0.00027671,2]
[327464336,1716085849779,-500.0,0.00027671,2]
[327464337,1716085849789,-500.0,0.00027671,2]
[327464338,1716085849799,-507.04,0.00027671,2]
[327464339,1716085849810,-500.0,0.00027671,2]
[327464340,1716085849820,-151.0,0.00027671,7]
[327464341,1716085849831,-1883.54,0.00027671,2]
[327464342,1716085849841,-500.0,0.00027671,2]
[327464343,1716085849851,-434.31252546,0.00027671,2]
[327464344,1716085849861,-666.92,0.00027671,2]
[327464345,1716085849874,-500.0,0.00027671,2]
[327464346,1716085849884,-151.0,0.00027671,7]
[327464347,1716085849895,-656.73,0.00027671,2]
[327464348,1716085849906,-1592.97,0.00027671,2]
[327464349,1716085849916,-1390.92,0.00027671,2]
[327464350,1716085849927,-500.0,0.00027671,2]
[327464351,1716085849937,-500.0,0.00027671,2]
[327464352,1716085849948,-500.0,0.00027671,2]
[327464353,1716085849959,-500.0,0.00027671,2]
[327464354,1716085849970,-500.0,0.00027671,2]
[327464355,1716085849980,-500.0,0.00027671,2]
[327464356,1716085849992,-3702.21,0.00027671,2]
[327464357,1716085850002,-612.6,0.00027671,2]
[327464358,1716085850012,-3199.39,0.00027671,2]
[327464359,1716085850022,-500.0,0.00027671,2]
[327464360,1716085850033,-500.0,0.00027671,2]
[327464361,1716085850044,-500.0,0.00027671,2]
[327464362,1716085850055,-500.0,0.00027671,2]
[327464363,1716085850066,-1388.18,0.00027671,2]
[327464364,1716085850076,-1511.36,0.00027671,2]
[327464365,1716085850086,-500.0,0.00027671,2]
[327464366,1716085850097,-2129.75,0.00027671,2]
[327464367,1716085850107,-500.0,0.00027671,2]
[327464368,1716085850117,-151.0,0.00027671,7]
[327464369,1716085850129,-500.0,0.00027671,2]
[327464370,1716085850140,-1073.96,0.00027671,2]
[327464371,1716085850152,-500.0,0.00027671,2]
[327464372,1716085850163,-690.65,0.00027671,2]
[327464373,1716085850173,-500.0,0.00027671,2]
[327464374,1716085850184,-2270.06,0.00027671,2]
[327464375,1716085850194,-500.0,0.00027671,2]
[327464376,1716085850204,-6532.15,0.00027671,2]
[327464377,1716085850214,-500.0,0.00027671,2]
[327464378,1716085850224,-500.0,0.00027671,2]
[327464379,1716085850235,-500.0,0.00027671,2]
[327464380,1716085850245,-894.77,0.00027671,2]
[327464381,1716085850256,-500.0,0.00027671,2]
[327464382,1716085850266,-500.0,0.00027671,2]
[327464383,1716085850277,-500.0,0.00027671,2]
[327464384,1716085850287,-500.0,0.00027671,2]
[327464385,1716085850297,-500.0,0.00027671,2]
[327464386,1716085850308,-500.0,0.00027671,2]
[327464387,1716085850318,-578.57,0.00027671,2]
[327464388,1716085850328,-500.0,0.00027671,2]
[327464389,1716085850338,-500.0,0.00027671,2]
[327464390,1716085850349,-500.0,0.00027671,2]
[327464391,1716085850359,-500.0,0.00027671,2]
[327464392,1716085850370,-500.0,0.00027671,2]
[327464393,1716085850380,-1921.99,0.00027671,2]
[327464394,1716085850391,-8416.22,0.00027671,2]
[327464395,1716085850402,-500.0,0.00027671,2]
[327464396,1716085850412,-153.000134,0.00027671,7]
[327464397,1716085850423,-500.0,0.00027671,2]
[327464398,1716085850433,-980.05,0.00027671,2]
[327464399,1716085850443,-500.0,0.00027671,2]
[327464400,1716085850454,-500.0,0.00027671,2]
[327464401,1716085850464,-500.0,0.00027671,2]
[327464402,1716085850474,-670.91,0.00027671,2]
[327464403,1716085850484,-723.44,0.00027671,2]
[327464404,1716085850499,-1815.36,0.00027671,2]
[327464405,1716085850509,-572.44,0.00027671,2]
[327464406,1716085850519,-500.0,0.00027671,2]
[327464407,1716085850532,-500.0,0.00027671,2]
[327464408,1716085850542,-679.69,0.00027671,2]
[327464409,1716085850553,-500.0,0.00027671,2]
[327464410,1716085850563,-500.0,0.00027671,2]
[327464411,1716085850575,-156.277448,0.00027671,7]
[327464412,1716085850586,-500.0,0.00027671,2]
[327464413,1716085850596,-500.0,0.00027671,2]
[327464414,1716085850607,-757.0,0.00027671,2]
[327464415,1716085850618,-500.0,0.00027671,2]
[327464416,1716085850628,-986.68,0.00027671,2]
[327464417,1716085850639,-500.0,0.00027671,2]
[327464418,1716085850649,-1095.82,0.00027671,2]
[327464419,1716085850659,-500.0,0.00027671,2]
[327464420,1716085850669,-1045.42,0.00027671,2]
[327464421,1716085850680,-500.0,0.00027671,2]
[327464422,1716085850691,-634.84,0.00027671,2]
[327464423,1716085850702,-564.16,0.00027671,2]
[327464424,1716085850713,-500.0,0.00027671,2]
[327464425,1716085850723,-1005.81,0.00027671,2]
[327464426,1716085850734,-500.0,0.00027671,2]
[327464427,1716085850745,-1148.74,0.00027671,2]
[327464428,1716085850755,-863.33,0.00027671,2]
[327464429,1716085850765,-1540.44,0.00027671,2]
[327464430,1716085850776,-1101.78,0.00027671,2]
[327464431,1716085850786,-500.0,0.00027671,2]
[327464432,1716085850798,-500.0,0.00027671,2]
[327464433,1716085850810,-518.34,0.00027671,2]
[327464434,1716085850821,-500.0,0.00027671,2]
[327464435,1716085850832,-500.0,0.00027671,2]
[327464436,1716085850843,-1055.9,0.00027671,2]
[327464437,1716085850854,-151.0,0.00027671,7]
[327464438,1716085850864,-500.0,0.00027671,2]
[327464439,1716085850875,-611.2,0.00027671,2]
[327464440,1716085850885,-151.0,0.00027671,7]
[327464441,1716085850895,-500.0,0.00027671,2]
[327464442,1716085850906,-500.0,0.00027671,2]
[327464443,1716085850916,-519.9,0.00027671,2]
[327464444,1716085850926,-845.3,0.00027671,2]
[327464445,1716085850937,-500.0,0.00027671,2]
[327464446,1716085850948,-500.0,0.00027671,2]
[327464447,1716085851214,-500.0,0.00027671,2]
[327464448,1716085851234,-500.0,0.00027671,2]
[327464449,1716085851253,-1331.68,0.00027671,2]
[327464450,1716085851266,-515.85,0.00027671,2]
[327464451,1716085851275,-500.0,0.00027671,2]
[327464452,1716085851284,-764.74,0.00027671,2]
[327464453,1716085851294,-766.32,0.00027671,2]
[327464454,1716085851303,-500.0,0.00027671,2]
[327464455,1716085851312,-500.0,0.00027671,2]
[327464456,1716085851322,-500.0,0.00027671,2]
[327464457,1716085851331,-500.0,0.00027671,2]
[327464458,1716085851340,-500.0,0.00027671,2]
[327464459,1716085851349,-600.54,0.00027671,2]
[327464460,1716085851358,-1277.87,0.00027671,2]
[327464461,1716085851367,-500.0,0.00027671,2]
[327464462,1716085851377,-500.0,0.00027671,2]
[327464463,1716085851386,-888.42,0.00027671,2]
[327464464,1716085851395,-1399.26,0.00027671,2]
[327464465,1716085851405,-500.0,0.00027671,2]
[327464466,1716085851414,-500.0,0.00027671,2]
[327464467,1716085851423,-500.0,0.00027671,2]
[327464468,1716085851432,-779.91,0.00027671,2]
[327464469,1716085851441,-1265.7,0.00027671,2]
[327464470,1716085851450,-500.0,0.00027671,2]
[327464471,1716085851459,-642.41,0.00027671,2]
[327464472,1716085851467,-791.07,0.00027671,2]
[327464473,1716085851476,-2675.79,0.00027671,2]
[327464474,1716085851486,-1862.49,0.00027671,2]
[327464475,1716085851500,-837.67,0.00027671,2]
[327464476,1716085851509,-191.473933,0.00027671,7]
[327464477,1716085851518,-1022.64,0.00027671,2]
[327464478,1716085851528,-151.0,0.00027671,7]
[327464479,1716085851538,-594.36,0.00027671,2]
[327464480,1716085851547,-977.8,0.00027671,2]
[327464481,1716085851556,-2591.14,0.00027671,2]
[327464482,1716085851566,-500.0,0.00027671,2]
[327464483,1716085851576,-1659.65,0.00027671,2]
[327464484,1716085851585,-500.0,0.00027671,2]
[327464485,1716085851594,-500.0,0.00027671,2]
[327464486,1716085851603,-500.0,0.00027671,2]
[327464487,1716085851612,-769.11,0.00027671,2]
[327464488,1716085851621,-1849.64,0.00027671,2]
[327464489,1716085851630,-3921.05,0.00027671,2]
[327464490,1716085851640,-3411.11,0.00027671,2]
[327464491,1716085851649,-656.14,0.00027671,2]
[327464492,1716085851659,-500.0,0.00027671,2]
[327464493,1716085851668,-5296.98,0.00027671,2]
[327464494,1716085851677,-500.0,0.00027671,2]
[327464495,1716085851687,-500.0,0.00027671,2]
[327464496,1716085851696,-810.55,0.00027671,2]
[327464497,1716085851705,-500.0,0.00027671,2]
[327464498,1716085851714,-8770.41,0.00027671,2]
[327464499,1716085851723,-500.0,0.00027671,2]
[327464500,1716085851733,-16460.36,0.00027671,2]
[327464501,1716085851743,-860.7,0.00027671,2]